[Event "*** Titled Tuesday Blitz"]
[Site "Chess.com"]
[Date "2018.04.03"]
[Round "1"]
[White "chorejason"]
[Black "amatatanav"]
[Result "0-1"]
[WhiteElo "2072"]
[BlackElo "2476"]
[TimeControl "180+2"]
[EndTime "13:05:27 PDT"]
[Termination "amatatanav won by resignation"]

1. e4 {[%clk 0:03:01.9]} 1... c5 {[%clk 0:02:59.9]} 2. d4 {[%clk 0:03:03]} 2...
cxd4 {[%clk 0:03:00.6]} 3. Nf3 {[%clk 0:03:04.9]} 3... Nc6 {[%clk 0:03:00.5]} 4.
Nxd4 {[%clk 0:03:05.9]} 4... g6 {[%clk 0:03:01.9]} 5. Nc3 {[%clk 0:03:07]} 5...
Bg7 {[%clk 0:03:02.8]} 6. Be3 {[%clk 0:03:08.9]} 6... Nf6 {[%clk 0:03:04]} 7.
Bc4 {[%clk 0:03:10.3]} 7... O-O {[%clk 0:03:03.3]} 8. Bb3 {[%clk 0:03:11.8]}
8... a5 {[%clk 0:03:02.2]} 9. O-O {[%clk 0:03:11.1]} 9... a4 {[%clk 0:03:00.7]}
10. Nxa4 {[%clk 0:03:11.1]} 10... Nxe4 {[%clk 0:03:00.6]} 11. Nb5 {[%clk
0:03:09.7]} 11... d5 {[%clk 0:02:59.8]} 12. Nb6 {[%clk 0:02:20.1]} 12... Ra5
{[%clk 0:02:56.8]} 13. a4 {[%clk 0:02:17]} 13... d4 {[%clk 0:02:50.4]} 14. Nxc8
{[%clk 0:02:11.7]} 14... dxe3 {[%clk 0:02:50.2]} 15. Qxd8 {[%clk 0:02:05.4]}
15... Rxd8 {[%clk 0:02:49.5]} 16. Nb6 {[%clk 0:02:00.3]} 16... exf2+ {[%clk
0:02:45.8]} 17. Kh1 {[%clk 0:01:59.1]} 17... Bxb2 {[%clk 0:02:27]} 18. Rab1
{[%clk 0:01:59.1]} 18... Nd2 {[%clk 0:02:16.9]} 19. Bxf7+ {[%clk 0:01:35.9]}
19... Kxf7 {[%clk 0:02:01.9]} 20. Rxf2+ {[%clk 0:01:36.5]} 20... Bf6 {[%clk
0:02:02.6]} 21. Rg1 {[%clk 0:01:22.4]} 21... Ne4 {[%clk 0:01:39.8]} 22. Rff1
{[%clk 0:01:23]} 22... Nd4 {[%clk 0:01:34.8]} 23. Nc4 {[%clk 0:01:22.2]} 23...
Rxa4 {[%clk 0:01:20.1]} 24. Ne5+ {[%clk 0:01:20.7]} 24... Kg7 {[%clk 0:01:15.6]}
25. Nd3 {[%clk 0:01:21.3]} 25... Ne2 {[%clk 0:01:12.9]} 26. Ra1 {[%clk
0:01:19.5]} 0-1

[Event "*** Titled Tuesday Blitz"]
[Site "Chess.com"]
[Date "2018.04.03"]
[Round "1"]
[White "Indianlad"]
[Black "Cryptochess"]
[Result "1-0"]
[WhiteElo "2771"]
[BlackElo "2402"]
[TimeControl "180+2"]
[EndTime "13:05:53 PDT"]
[Termination "Indianlad won by resignation"]

1. c4 {[%clk 0:03:00.1]} 1... Nf6 {[%clk 0:02:58.4]} 2. g3 {[%clk 0:03:00.8]}
2... e6 {[%clk 0:02:59.9]} 3. Bg2 {[%clk 0:03:01.5]} 3... d5 {[%clk 0:03:01.6]}
4. Nf3 {[%clk 0:03:03]} 4... dxc4 {[%clk 0:03:03.2]} 5. Qa4+ {[%clk 0:03:02]}
5... c6 {[%clk 0:03:04]} 6. Qxc4 {[%clk 0:03:00.1]} 6... b5 {[%clk 0:03:05.4]}
7. Qc2 {[%clk 0:03:00.1]} 7... Bb7 {[%clk 0:03:07]} 8. O-O {[%clk 0:03:01.1]}
8... Nbd7 {[%clk 0:03:07.8]} 9. d4 {[%clk 0:03:02.5]} 9... c5 {[%clk 0:03:08.9]}
10. Rd1 {[%clk 0:02:56.2]} 10... Qb6 {[%clk 0:03:09.8]} 11. a4 {[%clk
0:02:54.3]} 11... Rc8 {[%clk 0:03:08.6]} 12. axb5 {[%clk 0:02:48.1]} 12... cxd4
{[%clk 0:03:08.1]} 13. Qa4 {[%clk 0:02:49.2]} 13... Bc5 {[%clk 0:02:53.4]} 14.
Na3 {[%clk 0:02:40.5]} 14... O-O {[%clk 0:02:35.3]} 15. Nc4 {[%clk 0:02:36.3]}
15... Qd8 {[%clk 0:02:36.5]} 16. Na5 {[%clk 0:02:35.4]} 16... Ba8 {[%clk
0:02:22]} 17. Nc6 {[%clk 0:02:36.3]} 17... Bxc6 {[%clk 0:02:16.5]} 18. bxc6
{[%clk 0:02:38.2]} 18... Nb6 {[%clk 0:02:18.1]} 19. Qb5 {[%clk 0:02:39.7]} 19...
Qd6 {[%clk 0:02:12.7]} 20. b4 {[%clk 0:02:23.8]} 20... Bxb4 {[%clk 0:02:00.4]}
21. Rxd4 {[%clk 0:02:25.2]} 21... Nbd5 {[%clk 0:01:52.7]} 22. e4 {[%clk
0:02:26.1]} 22... e5 {[%clk 0:01:47.9]} 23. Rxd5 {[%clk 0:02:24.1]} 23... Nxd5
{[%clk 0:01:48.8]} 24. exd5 {[%clk 0:02:24.4]} 24... Bc5 {[%clk 0:01:50.1]} 25.
Qc4 {[%clk 0:02:11.5]} 25... Rfd8 {[%clk 0:01:46]} 26. Ng5 {[%clk 0:02:00.5]}
26... Bd4 {[%clk 0:01:43.7]} 27. Rb1 {[%clk 0:01:20.4]} 27... Qg6 {[%clk
0:01:22.1]} 28. Be4 {[%clk 0:01:20.6]} 28... f5 {[%clk 0:01:22.4]} 29. d6+
{[%clk 0:01:21.4]} 29... Kf8 {[%clk 0:01:19.6]} 30. Ne6+ {[%clk 0:01:22.4]}
30... Ke8 {[%clk 0:01:20.5]} 31. d7+ {[%clk 0:01:21.7]} 31... Rxd7 {[%clk
0:01:14.2]} 32. cxd7+ {[%clk 0:01:23.1]} 32... Kxd7 {[%clk 0:01:16]} 33. Rb7+
{[%clk 0:01:24.2]} 1-0

[Event "*** Titled Tuesday Blitz"]
[Site "Chess.com"]
[Date "2018.04.03"]
[Round "1"]
[White "GM_dmitrij"]
[Black "Vice64"]
[Result "1-0"]
[WhiteElo "2696"]
[BlackElo "2361"]
[TimeControl "180+2"]
[EndTime "13:06:00 PDT"]
[Termination "GM_dmitrij won by resignation"]

1. e4 {[%clk 0:02:58.6]} 1... e6 {[%clk 0:03:01.9]} 2. d4 {[%clk 0:02:59]} 2...
d6 {[%clk 0:03:03.4]} 3. Nc3 {[%clk 0:02:58.4]} 3... a6 {[%clk 0:03:01.2]} 4. f4
{[%clk 0:02:58.6]} 4... b5 {[%clk 0:02:59.9]} 5. Bd3 {[%clk 0:02:58.8]} 5... Bb7
{[%clk 0:03:00.2]} 6. Nf3 {[%clk 0:02:59.5]} 6... g6 {[%clk 0:02:58.2]} 7. Be3
{[%clk 0:02:57.2]} 7... Bg7 {[%clk 0:02:58.4]} 8. O-O {[%clk 0:02:57.4]} 8...
Ne7 {[%clk 0:02:58.8]} 9. f5 {[%clk 0:02:50.7]} 9... exf5 {[%clk 0:02:53.4]} 10.
exf5 {[%clk 0:02:51.4]} 10... Nd7 {[%clk 0:02:54.9]} 11. Qe1 {[%clk 0:02:51.7]}
11... O-O {[%clk 0:02:54.2]} 12. Qh4 {[%clk 0:02:33.5]} 12... gxf5 {[%clk
0:02:47.9]} 13. Bg5 {[%clk 0:02:24.1]} 13... f6 {[%clk 0:02:43.6]} 14. Bd2
{[%clk 0:02:16.2]} 14... Ng6 {[%clk 0:02:43.2]} 15. Qh5 {[%clk 0:02:12.1]} 15...
c5 {[%clk 0:02:35.6]} 16. Bxf5 {[%clk 0:02:11.1]} 16... Rf7 {[%clk 0:02:24.3]}
17. Rae1 {[%clk 0:02:08.4]} 17... Ndf8 {[%clk 0:02:23]} 18. Nh4 {[%clk
0:01:58.2]} 18... Re7 {[%clk 0:02:21.8]} 19. Rxe7 {[%clk 0:01:51.3]} 19... Nxe7
{[%clk 0:02:20.2]} 20. Ne2 {[%clk 0:01:41.9]} 20... Bc8 {[%clk 0:02:15]} 21. Ng3
{[%clk 0:01:42.3]} 21... Bd7 {[%clk 0:02:09.9]} 22. Rf4 {[%clk 0:01:34.9]} 22...
Be8 {[%clk 0:02:09.9]} 23. Qf3 {[%clk 0:01:34.2]} 23... Bc6 {[%clk 0:02:08.2]}
24. Qf2 {[%clk 0:01:32.6]} 24... Kh8 {[%clk 0:02:04.3]} 25. Rg4 {[%clk
0:01:33.6]} 25... b4 {[%clk 0:02:00.8]} 26. Nh5 {[%clk 0:01:32.3]} 26... Neg6
{[%clk 0:01:55]} 27. Bxg6 {[%clk 0:01:30.4]} 27... hxg6 {[%clk 0:01:54.8]} 28.
Nxg6+ {[%clk 0:01:32.3]} 28... Nxg6 {[%clk 0:01:52]} 29. Rxg6 {[%clk 0:01:34.2]}
29... Ra7 {[%clk 0:01:49.3]} 30. Nxf6 {[%clk 0:01:28.3]} 30... Bxf6 {[%clk
0:01:45.6]} 31. Rxf6 {[%clk 0:01:30.2]} 31... Qe7 {[%clk 0:01:34.8]} 32. Qh4+
{[%clk 0:01:13.9]} 32... Kg8 {[%clk 0:01:32.1]} 33. Qg5+ {[%clk 0:01:14.7]}
33... Kh8 {[%clk 0:01:31.5]} 34. Rh6+ {[%clk 0:01:15.6]} 34... Qh7 {[%clk
0:01:30.9]} 35. Qd8+ {[%clk 0:01:15.4]} 1-0

[Event "*** Titled Tuesday Blitz"]
[Site "Chess.com"]
[Date "2018.04.03"]
[Round "1"]
[White "Princec7"]
[Black "Konavets"]
[Result "0-1"]
[WhiteElo "2394"]
[BlackElo "2765"]
[TimeControl "180+2"]
[EndTime "13:06:02 PDT"]
[Termination "Konavets won by resignation"]

1. e4 {[%clk 0:03:00.9]} 1... e5 {[%clk 0:02:56.6]} 2. Nf3 {[%clk 0:02:59.9]}
2... Nc6 {[%clk 0:02:58.3]} 3. Bb5 {[%clk 0:03:00.3]} 3... Nd4 {[%clk
0:02:59.3]} 4. Bc4 {[%clk 0:03:00.4]} 4... Nxf3+ {[%clk 0:02:59.6]} 5. Qxf3
{[%clk 0:03:00.8]} 5... Nf6 {[%clk 0:03:01.5]} 6. O-O {[%clk 0:02:56.1]} 6... d6
{[%clk 0:03:02.5]} 7. h3 {[%clk 0:02:50.3]} 7... g6 {[%clk 0:03:03.6]} 8. d3
{[%clk 0:02:27.9]} 8... Bg7 {[%clk 0:02:58.3]} 9. Nc3 {[%clk 0:02:29.3]} 9... c6
{[%clk 0:02:59.1]} 10. a4 {[%clk 0:02:28.8]} 10... a5 {[%clk 0:02:59.4]} 11. Qe2
{[%clk 0:02:12.6]} 11... O-O {[%clk 0:02:58.6]} 12. Bb3 {[%clk 0:02:10.3]} 12...
Qe7 {[%clk 0:02:55]} 13. Be3 {[%clk 0:02:04.3]} 13... Be6 {[%clk 0:02:55.5]} 14.
Bxe6 {[%clk 0:02:03]} 14... Qxe6 {[%clk 0:02:56.7]} 15. Rad1 {[%clk 0:01:53.7]}
15... d5 {[%clk 0:02:53.7]} 16. exd5 {[%clk 0:01:37.5]} 16... Nxd5 {[%clk
0:02:54.5]} 17. Bc5 {[%clk 0:01:11.8]} 17... Rfd8 {[%clk 0:02:47]} 18. d4 {[%clk
0:01:01.1]} 18... Nf4 {[%clk 0:02:41.6]} 19. Qe3 {[%clk 0:00:54.9]} 19... exd4
{[%clk 0:02:42.5]} 20. Bxd4 {[%clk 0:00:41.5]} 20... Bxd4 {[%clk 0:02:36.3]} 21.
Rxd4 {[%clk 0:00:34.6]} 21... Qxe3 {[%clk 0:02:36.7]} 22. fxe3 {[%clk
0:00:33.9]} 22... Ne6 {[%clk 0:02:38.3]} 23. Rxd8+ {[%clk 0:00:32.4]} 23... Rxd8
{[%clk 0:02:40.2]} 24. Rd1 {[%clk 0:00:33.8]} 24... Rxd1+ {[%clk 0:02:41.2]} 25.
Nxd1 {[%clk 0:00:35.7]} 25... Kg7 {[%clk 0:02:42.9]} 26. Kf2 {[%clk 0:00:36.1]}
26... Kf6 {[%clk 0:02:44.8]} 27. b3 {[%clk 0:00:35.7]} 27... Ke5 {[%clk
0:02:45.7]} 28. Nc3 {[%clk 0:00:36.8]} 28... Nc5 {[%clk 0:02:46.3]} 29. Kf3
{[%clk 0:00:37]} 29... h5 {[%clk 0:02:47.9]} 30. h4 {[%clk 0:00:36.9]} 30... Nd7
{[%clk 0:02:46.1]} 31. g3 {[%clk 0:00:37.7]} 31... Nf6 {[%clk 0:02:47.1]} 32.
Ne2 {[%clk 0:00:37.8]} 32... Nd5 {[%clk 0:02:48.2]} 33. c3 {[%clk 0:00:36.3]}
33... b5 {[%clk 0:02:46.8]} 34. c4 {[%clk 0:00:33.1]} 34... bxc4 {[%clk
0:02:47.1]} 35. bxc4 {[%clk 0:00:35]} 35... Nb6 {[%clk 0:02:48.5]} 36. Nd4
{[%clk 0:00:36.2]} 36... Kd6 {[%clk 0:02:49.3]} 37. Ke4 {[%clk 0:00:21.8]} 37...
Nxa4 {[%clk 0:02:42.7]} 38. Kd3 {[%clk 0:00:19]} 38... Nc5+ {[%clk 0:02:39.3]}
39. Kc2 {[%clk 0:00:18.9]} 39... Ne4 {[%clk 0:02:40.9]} 0-1

[Event "*** Titled Tuesday Blitz"]
[Site "Chess.com"]
[Date "2018.04.03"]
[Round "1"]
[White "gkchesstiger"]
[Black "Manukyan_Artak"]
[Result "1-0"]
[WhiteElo "2756"]
[BlackElo "2387"]
[TimeControl "180+2"]
[EndTime "13:06:09 PDT"]
[Termination "gkchesstiger won by resignation"]

1. d4 {[%clk 0:02:28.1]} 1... Nf6 {[%clk 0:02:59.9]} 2. Nf3 {[%clk 0:02:25.6]}
2... e6 {[%clk 0:02:56.6]} 3. Bf4 {[%clk 0:02:25.2]} 3... c5 {[%clk 0:02:57.2]}
4. e3 {[%clk 0:02:25.6]} 4... d5 {[%clk 0:02:56.9]} 5. c3 {[%clk 0:02:25.3]}
5... Nc6 {[%clk 0:02:57.4]} 6. Nbd2 {[%clk 0:02:25.2]} 6... Be7 {[%clk
0:02:49.9]} 7. h3 {[%clk 0:02:25.2]} 7... O-O {[%clk 0:02:50.5]} 8. Bd3 {[%clk
0:02:25.3]} 8... Bd7 {[%clk 0:02:49]} 9. Ne5 {[%clk 0:02:25.6]} 9... Re8 {[%clk
0:02:45.1]} 10. a3 {[%clk 0:02:25]} 10... a5 {[%clk 0:02:38.4]} 11. h4 {[%clk
0:02:23.7]} 11... Nxe5 {[%clk 0:02:08.3]} 12. dxe5 {[%clk 0:02:23.7]} 12... Ne4
{[%clk 0:02:06.8]} 13. Nxe4 {[%clk 0:02:23.3]} 13... dxe4 {[%clk 0:02:07.8]} 14.
Bxe4 {[%clk 0:02:24.5]} 14... Qc7 {[%clk 0:01:59.6]} 15. Qh5 {[%clk 0:02:21.7]}
15... g6 {[%clk 0:01:59.2]} 16. Qg4 {[%clk 0:02:21]} 16... Bc6 {[%clk 0:01:52]}
17. Bc2 {[%clk 0:02:19.5]} 17... Bf8 {[%clk 0:01:37.2]} 18. h5 {[%clk
0:02:19.8]} 18... Bg7 {[%clk 0:01:33.8]} 19. hxg6 {[%clk 0:02:16.5]} 19... hxg6
{[%clk 0:01:34.8]} 20. O-O-O {[%clk 0:01:59.2]} 20... Bxe5 {[%clk 0:01:21.2]}
21. Qg5 {[%clk 0:01:36.1]} 21... Bxf4 {[%clk 0:01:11.4]} 22. exf4 {[%clk
0:01:35.3]} 22... Kg7 {[%clk 0:00:49]} 23. Qh6+ {[%clk 0:01:29.8]} 23... Kf6
{[%clk 0:00:49.7]} 24. Qh4+ {[%clk 0:01:29.8]} 24... Kg7 {[%clk 0:00:50.1]} 25.
Qh6+ {[%clk 0:01:26]} 25... Kf6 {[%clk 0:00:51.2]} 26. Bxg6 {[%clk 0:01:18.1]}
26... fxg6 {[%clk 0:00:48.3]} 27. Qh4+ {[%clk 0:01:17.5]} 27... Kg7 {[%clk
0:00:47.6]} 28. Qh7+ {[%clk 0:01:18.4]} 28... Kf6 {[%clk 0:00:48.8]} 29. Qxc7
{[%clk 0:01:19.3]} 1-0

[Event "*** Titled Tuesday Blitz"]
[Site "Chess.com"]
[Date "2018.04.03"]
[Round "1"]
[White "LastHeroJr"]
[Black "lachesisQ"]
[Result "0-1"]
[WhiteElo "2422"]
[BlackElo "2902"]
[TimeControl "180+2"]
[EndTime "13:06:12 PDT"]
[Termination "lachesisQ won by resignation"]

1. e4 {[%clk 0:03:01.2]} 1... c5 {[%clk 0:02:59]} 2. Nf3 {[%clk 0:03:00.5]} 2...
d6 {[%clk 0:03:00.4]} 3. Bb5+ {[%clk 0:03:00.9]} 3... Nd7 {[%clk 0:03:01.1]} 4.
O-O {[%clk 0:03:01.3]} 4... a6 {[%clk 0:03:01.9]} 5. Bd3 {[%clk 0:03:01.8]} 5...
g6 {[%clk 0:03:02.4]} 6. Re1 {[%clk 0:02:59.2]} 6... Bg7 {[%clk 0:03:03.6]} 7.
c3 {[%clk 0:02:58.9]} 7... Ngf6 {[%clk 0:03:04.2]} 8. Bf1 {[%clk 0:02:58.4]}
8... b5 {[%clk 0:03:02.9]} 9. d4 {[%clk 0:02:58.4]} 9... cxd4 {[%clk 0:03:04.1]}
10. cxd4 {[%clk 0:02:59.1]} 10... Bb7 {[%clk 0:03:03.7]} 11. Bd3 {[%clk
0:02:59.2]} 11... O-O {[%clk 0:03:02.4]} 12. Nbd2 {[%clk 0:03:00.3]} 12... Rc8
{[%clk 0:02:55.4]} 13. Nf1 {[%clk 0:03:00.3]} 13... e5 {[%clk 0:02:55.4]} 14.
Ng3 {[%clk 0:03:00]} 14... exd4 {[%clk 0:02:53.5]} 15. Nxd4 {[%clk 0:03:00.6]}
15... Re8 {[%clk 0:02:54.6]} 16. Bf4 {[%clk 0:02:59]} 16... Nc5 {[%clk
0:02:53.7]} 17. Bc2 {[%clk 0:02:57.9]} 17... Ncxe4 {[%clk 0:02:51.1]} 18. Nb3
{[%clk 0:02:38.3]} 18... d5 {[%clk 0:02:48.5]} 19. Be3 {[%clk 0:02:20.4]} 19...
h5 {[%clk 0:02:45.5]} 20. Bd4 {[%clk 0:02:20.5]} 20... h4 {[%clk 0:02:42.1]} 21.
Nxe4 {[%clk 0:02:21.5]} 21... dxe4 {[%clk 0:02:43.2]} 22. h3 {[%clk 0:02:21]}
22... Qd5 {[%clk 0:02:41.3]} 23. Be3 {[%clk 0:02:14.3]} 23... Qxd1 {[%clk
0:02:42.1]} 24. Bxd1 {[%clk 0:02:14.8]} 24... Nd5 {[%clk 0:02:43.3]} 25. Bd4
{[%clk 0:02:14.4]} 25... Nf4 {[%clk 0:02:41.8]} 26. Bxg7 {[%clk 0:02:09.4]}
26... Kxg7 {[%clk 0:02:43.7]} 27. a4 {[%clk 0:01:47.9]} 27... b4 {[%clk
0:02:43.4]} 28. Na5 {[%clk 0:01:48.7]} 28... Ba8 {[%clk 0:02:42.9]} 29. Be2
{[%clk 0:01:48.2]} 29... Rc2 {[%clk 0:02:39]} 30. Bxa6 {[%clk 0:01:47.9]} 30...
e3 {[%clk 0:02:34.6]} 31. Rxe3 {[%clk 0:00:44]} 31... Rxe3 {[%clk 0:02:34]} 32.
fxe3 {[%clk 0:00:45.9]} 32... Rxg2+ {[%clk 0:02:35]} 33. Kf1 {[%clk 0:00:47.3]}
33... Nxh3 {[%clk 0:02:36.6]} 34. Nb3 {[%clk 0:00:32.1]} 34... Rxb2 {[%clk
0:02:31]} 35. Nd4 {[%clk 0:00:29.8]} 35... Ng5 {[%clk 0:02:30.8]} 36. Bc8 {[%clk
0:00:26.9]} 36... h3 {[%clk 0:02:31.3]} 37. Bxh3 {[%clk 0:00:27.1]} 37... Nxh3
{[%clk 0:02:32.5]} 38. a5 {[%clk 0:00:28.2]} 38... b3 {[%clk 0:02:26.3]} 39. a6
{[%clk 0:00:28.5]} 39... Rf2+ {[%clk 0:02:27.1]} 40. Ke1 {[%clk 0:00:29.1]}
40... b2 {[%clk 0:02:28.3]} 0-1

[Event "*** Titled Tuesday Blitz"]
[Site "Chess.com"]
[Date "2018.04.03"]
[Round "1"]
[White "Mykola-Bortnyk"]
[Black "djano"]
[Result "0-1"]
[WhiteElo "2699"]
[BlackElo "2415"]
[TimeControl "180+2"]
[EndTime "13:06:29 PDT"]
[Termination "djano won by checkmate"]

1. e4 {[%clk 0:03:01.7]} 1... c5 {[%clk 0:03:00.1]} 2. c3 {[%clk 0:03:02.7]}
2... d5 {[%clk 0:02:51.4]} 3. exd5 {[%clk 0:03:04.6]} 3... Qxd5 {[%clk
0:02:52.7]} 4. d4 {[%clk 0:03:04]} 4... g6 {[%clk 0:02:53.7]} 5. dxc5 {[%clk
0:03:03.9]} 5... Qxc5 {[%clk 0:02:54.4]} 6. Be3 {[%clk 0:03:04.5]} 6... Qc7
{[%clk 0:02:53.8]} 7. Na3 {[%clk 0:03:05]} 7... a6 {[%clk 0:02:55]} 8. Qb3
{[%clk 0:03:04.1]} 8... Bg7 {[%clk 0:02:52]} 9. Bc4 {[%clk 0:02:58.7]} 9... e6
{[%clk 0:02:52.6]} 10. Bb6 {[%clk 0:02:55.5]} 10... Qe7 {[%clk 0:02:43.3]} 11.
Nf3 {[%clk 0:02:45.7]} 11... Nf6 {[%clk 0:02:43.9]} 12. Rd1 {[%clk 0:02:34.2]}
12... O-O {[%clk 0:02:40.6]} 13. Be2 {[%clk 0:02:25.5]} 13... Nbd7 {[%clk
0:02:35.8]} 14. Nc4 {[%clk 0:02:26.4]} 14... Nd5 {[%clk 0:02:36.5]} 15. Bd4
{[%clk 0:02:16.9]} 15... e5 {[%clk 0:02:32.2]} 16. Ncxe5 {[%clk 0:02:07.8]}
16... Nf4 {[%clk 0:02:07.2]} 17. Qc4 {[%clk 0:01:12.4]} 17... Nxe5 {[%clk
0:02:00.8]} 18. Nxe5 {[%clk 0:01:12.3]} 18... Bxe5 {[%clk 0:02:00.5]} 19. Bc5
{[%clk 0:01:11.4]} 19... Qg5 {[%clk 0:01:39.2]} 20. h4 {[%clk 0:01:03.4]} 20...
Qxg2 {[%clk 0:01:27.3]} 21. Rf1 {[%clk 0:01:01.8]} 21... Be6 {[%clk 0:01:24.8]}
22. Qb4 {[%clk 0:00:52.5]} 22... Rfe8 {[%clk 0:01:22.1]} 23. Rd2 {[%clk
0:00:42.2]} 23... Rad8 {[%clk 0:01:13.9]} 24. Rxd8 {[%clk 0:00:24.7]} 24... Rxd8
{[%clk 0:01:15.8]} 25. Qa5 {[%clk 0:00:25.7]} 25... Qd5 {[%clk 0:01:07.9]} 26.
c4 {[%clk 0:00:22.5]} 26... Ng2# {[%clk 0:01:08.6]} 0-1

[Event "*** Titled Tuesday Blitz"]
[Site "Chess.com"]
[Date "2018.04.03"]
[Round "1"]
[White "26andrej26"]
[Black "Federer999"]
[Result "0-1"]
[WhiteElo "2322"]
[BlackElo "2660"]
[TimeControl "180+2"]
[EndTime "13:06:38 PDT"]
[Termination "Federer999 won by resignation"]

1. e4 {[%clk 0:03:01.9]} 1... c6 {[%clk 0:02:58.6]} 2. Nc3 {[%clk 0:03:02.5]}
2... d5 {[%clk 0:03:00.5]} 3. d4 {[%clk 0:03:04.3]} 3... dxe4 {[%clk 0:02:56.3]}
4. Nxe4 {[%clk 0:03:06.2]} 4... Bf5 {[%clk 0:02:57]} 5. Ng3 {[%clk 0:03:07.3]}
5... Bg6 {[%clk 0:02:57.8]} 6. Nf3 {[%clk 0:03:08.5]} 6... Nd7 {[%clk
0:02:57.1]} 7. h4 {[%clk 0:03:09]} 7... h6 {[%clk 0:02:57.5]} 8. h5 {[%clk
0:03:10.2]} 8... Bh7 {[%clk 0:02:58.5]} 9. Bd3 {[%clk 0:03:11.8]} 9... Bxd3
{[%clk 0:03:00]} 10. Qxd3 {[%clk 0:03:13.7]} 10... Ngf6 {[%clk 0:03:00.8]} 11.
Bd2 {[%clk 0:03:12.6]} 11... e6 {[%clk 0:03:01.5]} 12. O-O-O {[%clk 0:03:05.9]}
12... Be7 {[%clk 0:03:01.9]} 13. Kb1 {[%clk 0:02:26.8]} 13... Qb6 {[%clk
0:03:00.2]} 14. Rhe1 {[%clk 0:02:16.8]} 14... O-O {[%clk 0:02:43.7]} 15. Nf5
{[%clk 0:02:16.9]} 15... exf5 {[%clk 0:02:27.2]} 16. Rxe7 {[%clk 0:02:18.8]}
16... Qd8 {[%clk 0:02:25.8]} 17. Re2 {[%clk 0:02:05.3]} 17... Ne4 {[%clk
0:02:25.3]} 18. g3 {[%clk 0:02:06.5]} 18... Ndf6 {[%clk 0:02:20]} 19. Nh4 {[%clk
0:02:07.7]} 19... Re8 {[%clk 0:02:10.9]} 20. Qf3 {[%clk 0:01:33.6]} 20... Qxd4
{[%clk 0:02:03.7]} 21. Nxf5 {[%clk 0:01:33.2]} 21... Qd5 {[%clk 0:02:03.5]} 22.
Ka1 {[%clk 0:00:57.2]} 22... Rad8 {[%clk 0:01:59.3]} 23. Qf4 {[%clk 0:00:14.7]}
23... Nxd2 {[%clk 0:01:44.5]} 24. Rexd2 {[%clk 0:00:14.2]} 24... Qxd2 {[%clk
0:01:36.9]} 25. Nxh6+ {[%clk 0:00:02.1]} 25... gxh6 {[%clk 0:01:26.9]} 26. Rb1
{[%clk 0:00:03.1]} 0-1

[Event "*** Titled Tuesday Blitz"]
[Site "Chess.com"]
[Date "2018.04.03"]
[Round "1"]
[White "guillembaches"]
[Black "BKMZBKMZ"]
[Result "0-1"]
[WhiteElo "2240"]
[BlackElo "2581"]
[TimeControl "180+2"]
[EndTime "13:06:39 PDT"]
[Termination "BKMZBKMZ won on time"]

1. d4 {[%clk 0:02:55]} 1... Nf6 {[%clk 0:03:00.8]} 2. Bf4 {[%clk 0:02:55.4]}
2... g6 {[%clk 0:03:01.8]} 3. Nc3 {[%clk 0:02:56]} 3... d5 {[%clk 0:03:02.2]} 4.
e3 {[%clk 0:02:56.4]} 4... Bg7 {[%clk 0:03:02.8]} 5. h4 {[%clk 0:02:57.1]} 5...
c6 {[%clk 0:02:46]} 6. h5 {[%clk 0:02:49.9]} 6... Nxh5 {[%clk 0:02:45.4]} 7.
Rxh5 {[%clk 0:02:50.4]} 7... gxh5 {[%clk 0:02:46.8]} 8. Qxh5 {[%clk 0:02:51.2]}
8... Nd7 {[%clk 0:02:45.2]} 9. Nf3 {[%clk 0:02:45.2]} 9... Nf6 {[%clk
0:02:45.9]} 10. Qh2 {[%clk 0:02:38.4]} 10... Bf5 {[%clk 0:02:36]} 11. Ne5 {[%clk
0:02:24.8]} 11... e6 {[%clk 0:02:25.2]} 12. O-O-O {[%clk 0:02:16.1]} 12... Nd7
{[%clk 0:02:24]} 13. g4 {[%clk 0:02:05.9]} 13... Bg6 {[%clk 0:02:22.2]} 14. Bd3
{[%clk 0:01:47.6]} 14... Bxd3 {[%clk 0:02:09.2]} 15. cxd3 {[%clk 0:01:44.4]}
15... Qe7 {[%clk 0:02:06.2]} 16. Qh5 {[%clk 0:01:37.7]} 16... Nxe5 {[%clk
0:02:06]} 17. dxe5 {[%clk 0:01:37.1]} 17... O-O-O {[%clk 0:02:03]} 18. d4 {[%clk
0:01:28.7]} 18... f6 {[%clk 0:02:01.7]} 19. exf6 {[%clk 0:01:20.7]} 19... Bxf6
{[%clk 0:02:02.6]} 20. Kb1 {[%clk 0:01:14.3]} 20... Rdg8 {[%clk 0:02:00.8]} 21.
Rc1 {[%clk 0:01:11.7]} 21... Rg6 {[%clk 0:01:59.1]} 22. Nb5 {[%clk 0:00:58.3]}
22... Kd7 {[%clk 0:01:58.5]} 23. e4 {[%clk 0:00:41.2]} 23... Bg5 {[%clk
0:01:48.8]} 24. Bd6 {[%clk 0:00:20.3]} 24... Qf7 {[%clk 0:01:49.5]} 25. f4
{[%clk 0:00:18]} 25... Bxf4 {[%clk 0:01:38.8]} 26. Rf1 {[%clk 0:00:18.3]} 26...
Rf6 {[%clk 0:01:39.6]} 27. Qxf7+ {[%clk 0:00:02.8]} 27... Rxf7 {[%clk
0:01:41.5]} 28. Bxf4 {[%clk 0:00:04.1]} 28... cxb5 {[%clk 0:01:42]} 0-1

[Event "*** Titled Tuesday Blitz"]
[Site "Chess.com"]
[Date "2018.04.03"]
[Round "1"]
[White "nubair1198"]
[Black "PowerThinking2650"]
[Result "1-0"]
[WhiteElo "2578"]
[BlackElo "2239"]
[TimeControl "180+2"]
[EndTime "13:06:45 PDT"]
[Termination "nubair1198 won by resignation"]

1. d4 {[%clk 0:03:01.9]} 1... Nf6 {[%clk 0:03:00.9]} 2. c4 {[%clk 0:03:02.6]}
2... g6 {[%clk 0:03:02]} 3. Nc3 {[%clk 0:03:04]} 3... Bg7 {[%clk 0:03:03.2]} 4.
e4 {[%clk 0:03:05.5]} 4... d6 {[%clk 0:03:04.5]} 5. Nf3 {[%clk 0:03:06.3]} 5...
O-O {[%clk 0:03:05.4]} 6. Be2 {[%clk 0:03:07.8]} 6... e5 {[%clk 0:03:06.4]} 7.
O-O {[%clk 0:03:09]} 7... Nc6 {[%clk 0:03:07.6]} 8. d5 {[%clk 0:03:10.2]} 8...
Ne7 {[%clk 0:03:08.8]} 9. b4 {[%clk 0:03:11.9]} 9... Nh5 {[%clk 0:03:09.3]} 10.
Re1 {[%clk 0:03:12.5]} 10... a5 {[%clk 0:03:09.3]} 11. bxa5 {[%clk 0:03:13.3]}
11... f5 {[%clk 0:03:09.3]} 12. Ng5 {[%clk 0:03:06.6]} 12... Nf6 {[%clk
0:03:09.7]} 13. c5 {[%clk 0:02:52.9]} 13... dxc5 {[%clk 0:02:57]} 14. Bc4 {[%clk
0:02:49.7]} 14... Kh8 {[%clk 0:02:48.6]} 15. d6 {[%clk 0:02:29.3]} 15... cxd6
{[%clk 0:02:31.4]} 16. Nf7+ {[%clk 0:02:30.3]} 16... Rxf7 {[%clk 0:02:32.6]} 17.
Bxf7 {[%clk 0:02:32.2]} 17... Nxe4 {[%clk 0:01:55.1]} 18. Nxe4 {[%clk
0:02:31.5]} 18... fxe4 {[%clk 0:01:55.9]} 19. Bg5 {[%clk 0:02:33.2]} 19... Bf5
{[%clk 0:01:02.2]} 20. g4 {[%clk 0:02:30]} 20... h6 {[%clk 0:00:34.1]} 21. gxf5
{[%clk 0:02:17.7]} 21... hxg5 {[%clk 0:00:31.1]} 22. fxg6 {[%clk 0:02:18.6]}
22... Nf5 {[%clk 0:00:22.5]} 23. Rxe4 {[%clk 0:02:12.8]} 23... Qf6 {[%clk
0:00:17.7]} 24. Qf3 {[%clk 0:02:06]} 24... d5 {[%clk 0:00:13.1]} 25. Qh5+ {[%clk
0:02:01.7]} 25... Nh6 {[%clk 0:00:12.5]} 26. Bxd5 {[%clk 0:02:03]} 26... Qf5
{[%clk 0:00:09.9]} 27. Rb1 {[%clk 0:01:55.7]} 27... Rf8 {[%clk 0:00:10.5]} 28.
Rb2 {[%clk 0:01:51.6]} 28... c4 {[%clk 0:00:08.2]} 29. Rxc4 {[%clk 0:01:47.4]}
29... e4 {[%clk 0:00:08.8]} 30. Bxe4 {[%clk 0:01:46.4]} 30... Qf4 {[%clk
0:00:08.4]} 31. Rbc2 {[%clk 0:01:45.5]} 31... g4 {[%clk 0:00:07.4]} 32. Bxb7
{[%clk 0:01:42.7]} 32... g3 {[%clk 0:00:06.9]} 33. Rxf4 {[%clk 0:01:42.9]} 1-0